[Event "Titled Tuesday Blitz May 2 Early 2023"]
[White "Berezin, Viktor"]
[Black "Eidelman, Gabriel"]
[WhiteFideId "14107872"]
[BlackFideId "30910544"]
[WhiteElo "2310"]
[BlackElo "2209"]
[Result "1-0"]
[Round "07"]
[TimeControl "180+2"]
[Date "2023.05.03"]
[WhiteClock "0:00:00"]
[BlackClock "0:00:00"]

1. d4 {[%clk 0:00:01]}  d6 {[%clk 0:00:01]} 2. Nf3 {[%clk 0:00:01]}  g6 {[%clk 0:00:01]} 3. g3 {[%clk 0:00:01]}  Bg7 {[%clk 0:00:01]} 4. Bg2 {[%clk 0:00:01]}  Nf6 {[%clk 0:00:01]} 5. O-O {[%clk 0:00:01]}  O-O {[%clk 0:00:01]} 6. a4 {[%clk 0:00:01]}  a5 {[%clk 0:00:01]} 7. Nc3 {[%clk 0:00:01]}  d5 {[%clk 0:00:01]} 8. Ne5 {[%clk 0:00:01]}  c6 {[%clk 0:00:01]} 9. e4 {[%clk 0:00:01]}  dxe4 {[%clk 0:00:01]} 10. Nxe4 {[%clk 0:00:01]}  Nxe4 {[%clk 0:00:01]} 11. Bxe4 {[%clk 0:00:01]}  Bh3 {[%clk 0:00:01]} 12. Re1 {[%clk 0:00:01]}  Nd7 {[%clk 0:00:01]} 13. Nxd7 {[%clk 0:00:01]}  Qxd7 {[%clk 0:00:01]} 14. c3 {[%clk 0:00:01]}  Rad8 {[%clk 0:00:01]} 15. Qb3 {[%clk 0:00:01]}  e5 {[%clk 0:00:01]} 16. Bg5 {[%clk 0:00:01]}  Rde8 {[%clk 0:00:01]} 17. dxe5 {[%clk 0:00:01]}  Bxe5 {[%clk 0:00:00]} 18. Rad1 {[%clk 0:00:01]}  Qc8 {[%clk 0:00:00]} 19. Qb6 {[%clk 0:00:00]}  Bg7 {[%clk 0:00:00]} 20. Bf4 {[%clk 0:00:00]}  Rxe4 {[%clk 0:00:00]} 21. Rxe4 {[%clk 0:00:00]}  Qg4 {[%clk 0:00:00]} 22. Rd3 {[%clk 0:00:00]}  g5 {[%clk 0:00:00]} 23. Qe3 {[%clk 0:00:00]}  gxf4 {[%clk 0:00:00]} 24. Rxf4 {[%clk 0:00:00]}  Qe6 {[%clk 0:00:00]} 25. g4 {[%clk 0:00:00]}  Bxg4 {[%clk 0:00:00]} 26. Qg3 {[%clk 0:00:00]}  Bf5 {[%clk 0:00:00]} 27. Re3 {[%clk 0:00:00]}  Qg6 {[%clk 0:00:00]} 28. Re7 {[%clk 0:00:00]}  Qxg3+ {[%clk 0:00:00]} 29. hxg3 {[%clk 0:00:00]}  Bc8 {[%clk 0:00:00]} 30. Rfe4 {[%clk 0:00:00]}  Bf6 {[%clk 0:00:00]} 31. Rc7 {[%clk 0:00:00]}  Kg7 {[%clk 0:00:00]} 32. Kg2 {[%clk 0:00:00]}  Rd8 {[%clk 0:00:00]} 33. Re2 {[%clk 0:00:00]}  Bg4 {[%clk 0:00:00]} 34. f3 {[%clk 0:00:00]}  Bc8 {[%clk 0:00:00]} 35. Kf2 {[%clk 0:00:00]}  Be6 {[%clk 0:00:00]} 36. Rxb7 {[%clk 0:00:00]}  Rd3 {[%clk 0:00:00]} 37. b4 {[%clk 0:00:00]}  Bd5 {[%clk 0:00:00]} 38. bxa5 {[%clk 0:00:00]}  Rxf3+ {[%clk 0:00:00]} 39. Ke1 {[%clk 0:00:00]}  Bxc3+ {[%clk 0:00:00]} 40. Kd1 {[%clk 0:00:00]}  Bb3+ {[%clk 0:00:00]} 41. Rxb3 {[%clk 0:00:00]} 1-0


[Site "https://www.chess.com"]

[Event "Titled Tuesday Blitz May 2 Early 2023"]
[White "Leenhouts, Koen"]
[Black "Seletsky, Grigory"]
[WhiteFideId "1008439"]
[BlackFideId "14112191"]
[WhiteElo "2409"]
[BlackElo "2490"]
[Result "1-0"]
[Round "07"]
[TimeControl "180+2"]
[Date "2023.05.03"]
[WhiteClock "0:00:00"]
[BlackClock "0:00:00"]

1. e4 {[%clk 0:00:01]}  e6 {[%clk 0:00:01]} 2. d4 {[%clk 0:00:01]}  d5 {[%clk 0:00:01]} 3. e5 {[%clk 0:00:01]}  c5 {[%clk 0:00:01]} 4. c3 {[%clk 0:00:01]}  Nc6 {[%clk 0:00:01]} 5. Nf3 {[%clk 0:00:01]}  Bd7 {[%clk 0:00:01]} 6. Bd3 {[%clk 0:00:01]}  Rc8 {[%clk 0:00:01]} 7. O-O {[%clk 0:00:01]}  Nge7 {[%clk 0:00:01]} 8. dxc5 {[%clk 0:00:01]}  Ng6 {[%clk 0:00:01]} 9. Bg5 {[%clk 0:00:01]}  Qc7 {[%clk 0:00:01]} 10. Re1 {[%clk 0:00:01]}  Bxc5 {[%clk 0:00:01]} 11. b4 {[%clk 0:00:01]}  Be7 {[%clk 0:00:01]} 12. Bxe7 {[%clk 0:00:01]}  Ncxe7 {[%clk 0:00:01]} 13. h4 {[%clk 0:00:01]}  Nf4 {[%clk 0:00:01]} 14. Bf1 {[%clk 0:00:01]}  O-O {[%clk 0:00:01]} 15. g3 {[%clk 0:00:01]}  Nfg6 {[%clk 0:00:01]} 16. h5 {[%clk 0:00:01]}  Nh8 {[%clk 0:00:01]} 17. h6 {[%clk 0:00:01]}  g6 {[%clk 0:00:01]} 18. Qd2 {[%clk 0:00:01]}  f6 {[%clk 0:00:01]} 19. exf6 {[%clk 0:00:01]}  Rxf6 {[%clk 0:00:01]} 20. Ne5 {[%clk 0:00:01]}  Rcf8 {[%clk 0:00:00]} 21. f4 {[%clk 0:00:01]}  Nc6 {[%clk 0:00:00]} 22. Ng4 {[%clk 0:00:00]}  Rf5 {[%clk 0:00:00]} 23. Na3 {[%clk 0:00:00]}  a6 {[%clk 0:00:00]} 24. Nc2 {[%clk 0:00:00]}  Qb6+ {[%clk 0:00:00]} 25. Kh2 {[%clk 0:00:00]}  Rh5+ {[%clk 0:00:00]} 26. Kg2 {[%clk 0:00:00]}  d4 {[%clk 0:00:00]} 27. Bc4 {[%clk 0:00:00]}  Nd8 {[%clk 0:00:00]} 28. Qxd4 {[%clk 0:00:00]}  Bc6+ {[%clk 0:00:00]} 29. Kg1 {[%clk 0:00:00]}  Rh1+ {[%clk 0:00:00]} 30. Kf2 {[%clk 0:00:00]}  Qxd4+ {[%clk 0:00:00]} 31. Nxd4 {[%clk 0:00:00]}  Rxe1 {[%clk 0:00:00]} 32. Rxe1 {[%clk 0:00:00]}  Bd5 {[%clk 0:00:00]} 33. Bxd5 {[%clk 0:00:00]}  exd5 {[%clk 0:00:00]} 34. Re7 {[%clk 0:00:00]}  Rf7 {[%clk 0:00:00]} 35. Re8+ {[%clk 0:00:00]}  Rf8 {[%clk 0:00:00]} 36. Nf6+ {[%clk 0:00:00]}  Kf7 {[%clk 0:00:00]} 37. Rxf8+ {[%clk 0:00:00]}  Kxf8 {[%clk 0:00:00]} 38. Nxh7+ {[%clk 0:00:00]}  Ke7 {[%clk 0:00:00]} 39. Ng5 {[%clk 0:00:00]}  Ndf7 {[%clk 0:00:00]} 40. Nxf7 {[%clk 0:00:00]}  Nxf7 {[%clk 0:00:00]} 41. h7 {[%clk 0:00:00]}  Kf6 {[%clk 0:00:00]} 42. Ke3 {[%clk 0:00:00]}  Kg7 {[%clk 0:00:00]} 43. Ne6+ {[%clk 0:00:00]}  Kxh7 {[%clk 0:00:00]} 44. Ng5+ {[%clk 0:00:00]}  Nxg5 {[%clk 0:00:00]} 45. fxg5 {[%clk 0:00:00]}  Kg7 {[%clk 0:00:00]} 46. Kd4 {[%clk 0:00:00]}  Kf7 {[%clk 0:00:00]} 47. Kxd5 {[%clk 0:00:00]}  Ke7 {[%clk 0:00:00]} 48. c4 {[%clk 0:00:00]}  Kd7 {[%clk 0:00:00]} 49. c5 {[%clk 0:00:00]}  Kc7 {[%clk 0:00:00]} 50. a4 {[%clk 0:00:00]}  Kd7 {[%clk 0:00:00]} 51. b5 {[%clk 0:00:00]}  axb5 {[%clk 0:00:00]} 52. axb5 {[%clk 0:00:00]}  Kc7 {[%clk 0:00:00]} 53. Ke6 {[%clk 0:00:00]} 1-0


[Site "https://www.chess.com"]

[Event "Titled Tuesday Blitz May 2 Early 2023"]
[White "Ljukin, Sergei"]
[Black "Krsnik Cohar, Ivan Vihor"]
[WhiteFideId "14102200"]
[BlackFideId "14520044"]
[WhiteElo "2312"]
[BlackElo "2414"]
[Result "1-0"]
[Round "07"]
[TimeControl "180+2"]
[Date "2023.05.03"]
[WhiteClock "0:00:00"]
[BlackClock "0:00:00"]

1. e4 {[%clk 0:00:01]}  c5 {[%clk 0:00:01]} 2. Nf3 {[%clk 0:00:01]}  g6 {[%clk 0:00:01]} 3. c4 {[%clk 0:00:01]}  Bg7 {[%clk 0:00:01]} 4. d4 {[%clk 0:00:01]}  cxd4 {[%clk 0:00:01]} 5. Nxd4 {[%clk 0:00:01]}  Nc6 {[%clk 0:00:01]} 6. Be3 {[%clk 0:00:01]}  d6 {[%clk 0:00:01]} 7. Nc3 {[%clk 0:00:01]}  Nf6 {[%clk 0:00:01]} 8. Be2 {[%clk 0:00:01]}  Bd7 {[%clk 0:00:01]} 9. O-O {[%clk 0:00:01]}  Nxd4 {[%clk 0:00:01]} 10. Bxd4 {[%clk 0:00:01]}  O-O {[%clk 0:00:01]} 11. f4 {[%clk 0:00:01]}  Bc6 {[%clk 0:00:01]} 12. Bf3 {[%clk 0:00:01]}  Nd7 {[%clk 0:00:01]} 13. Bxg7 {[%clk 0:00:01]}  Kxg7 {[%clk 0:00:01]} 14. b4 {[%clk 0:00:01]}  Qb6+ {[%clk 0:00:01]} 15. c5 {[%clk 0:00:01]}  Qxb4 {[%clk 0:00:01]} 16. Nd5 {[%clk 0:00:01]}  Qxc5+ {[%clk 0:00:01]} 17. Kh1 {[%clk 0:00:01]}  Bxd5 {[%clk 0:00:01]} 18. exd5 {[%clk 0:00:01]}  Rac8 {[%clk 0:00:01]} 19. Re1 {[%clk 0:00:01]}  Rfe8 {[%clk 0:00:01]} 20. Qa4 {[%clk 0:00:00]}  Nf6 {[%clk 0:00:01]} 21. Rab1 {[%clk 0:00:00]}  Rc7 {[%clk 0:00:01]} 22. h3 {[%clk 0:00:00]}  b6 {[%clk 0:00:01]} 23. Rbc1 {[%clk 0:00:00]}  Qxc1 {[%clk 0:00:01]} 24. Rxc1 {[%clk 0:00:00]}  Rxc1+ {[%clk 0:00:01]} 25. Kh2 {[%clk 0:00:00]}  Rc7 {[%clk 0:00:01]} 26. g4 {[%clk 0:00:00]}  Rb8 {[%clk 0:00:00]} 27. Qd4 {[%clk 0:00:00]}  Kg8 {[%clk 0:00:00]} 28. Qe3 {[%clk 0:00:00]}  b5 {[%clk 0:00:00]} 29. g5 {[%clk 0:00:00]}  Ne8 {[%clk 0:00:00]} 30. h4 {[%clk 0:00:00]}  Rbc8 {[%clk 0:00:00]} 31. h5 {[%clk 0:00:00]}  Rc3 {[%clk 0:00:00]} 32. Qe4 {[%clk 0:00:00]}  Ng7 {[%clk 0:00:00]} 33. Bg4 {[%clk 0:00:00]}  Rc2+ {[%clk 0:00:00]} 34. Kg1 {[%clk 0:00:00]}  R8c7 {[%clk 0:00:00]} 35. h6 {[%clk 0:00:00]}  Rd2 {[%clk 0:00:00]} 36. Bh3 {[%clk 0:00:00]}  Nf5 {[%clk 0:00:00]} 37. Qe1 {[%clk 0:00:00]}  Rdc2 {[%clk 0:00:00]} 38. Qe4 {[%clk 0:00:00]}  Rxa2 {[%clk 0:00:00]} 39. Qb1 {[%clk 0:00:00]}  Rac2 {[%clk 0:00:00]} 40. Qxb5 {[%clk 0:00:00]}  Rc8 {[%clk 0:00:00]} 41. Bxf5 {[%clk 0:00:00]}  gxf5 {[%clk 0:00:00]} 42. Qd3 {[%clk 0:00:00]}  Ra2 {[%clk 0:00:00]} 43. Qb1 {[%clk 0:00:00]}  Rcc2 {[%clk 0:00:00]} 44. Qb8+ {[%clk 0:00:00]} 1-0


[Site "https://www.chess.com"]

[Event "Titled Tuesday Blitz May 2 Early 2023"]
[White "Pourkashiyan, Atousa"]
[Black "Pham, Le Thao Nguyen"]
[WhiteFideId "12502014"]
[BlackFideId "12401226"]
[WhiteElo "2228"]
[BlackElo "2286"]
[Result "1-0"]
[Round "07"]
[TimeControl "180+2"]
[Date "2023.05.03"]
[WhiteClock "0:00:00"]
[BlackClock "0:00:00"]

1. e4 {[%clk 0:00:01]}  c5 {[%clk 0:00:01]} 2. Nf3 {[%clk 0:00:01]}  e6 {[%clk 0:00:01]} 3. d4 {[%clk 0:00:01]}  cxd4 {[%clk 0:00:01]} 4. Nxd4 {[%clk 0:00:01]}  a6 {[%clk 0:00:01]} 5. Nc3 {[%clk 0:00:01]}  Qc7 {[%clk 0:00:01]} 6. Be2 {[%clk 0:00:01]}  b5 {[%clk 0:00:01]} 7. O-O {[%clk 0:00:01]}  Bb7 {[%clk 0:00:01]} 8. Re1 {[%clk 0:00:01]}  Nf6 {[%clk 0:00:01]} 9. e5 {[%clk 0:00:01]}  Nd5 {[%clk 0:00:01]} 10. Nxd5 {[%clk 0:00:01]}  Bxd5 {[%clk 0:00:01]} 11. Bf3 {[%clk 0:00:01]}  Bxf3 {[%clk 0:00:01]} 12. Qxf3 {[%clk 0:00:01]}  Nc6 {[%clk 0:00:01]} 13. Bf4 {[%clk 0:00:00]}  Rc8 {[%clk 0:00:01]} 14. Nf5 {[%clk 0:00:00]}  Qd8 {[%clk 0:00:01]} 15. Ng3 {[%clk 0:00:00]}  Nd4 {[%clk 0:00:01]} 16. Qb7 {[%clk 0:00:00]}  Rc7 {[%clk 0:00:00]} 17. Qb6 {[%clk 0:00:00]}  Bc5 {[%clk 0:00:00]} 18. Qxa6 {[%clk 0:00:00]}  Nxc2 {[%clk 0:00:00]} 19. Qxb5 {[%clk 0:00:00]}  Nxe1 {[%clk 0:00:00]} 20. Rxe1 {[%clk 0:00:00]}  O-O {[%clk 0:00:00]} 21. Qd3 {[%clk 0:00:00]}  Qb8 {[%clk 0:00:00]} 22. b3 {[%clk 0:00:00]}  Rfc8 {[%clk 0:00:00]} 23. Ne4 {[%clk 0:00:00]}  Qb4 {[%clk 0:00:00]} 24. Bd2 {[%clk 0:00:00]}  Qd4 {[%clk 0:00:00]} 25. Qg3 {[%clk 0:00:00]}  Kh8 {[%clk 0:00:00]} 26. Bc3 {[%clk 0:00:00]}  Qd5 {[%clk 0:00:00]} 27. Ng5 {[%clk 0:00:00]}  Bxf2+ {[%clk 0:00:00]} 28. Qxf2 {[%clk 0:00:00]}  Rxc3 {[%clk 0:00:00]} 29. Nxf7+ {[%clk 0:00:00]}  Kg8 {[%clk 0:00:00]} 30. Rf1 {[%clk 0:00:00]}  Qc5 {[%clk 0:00:00]} 31. Nd6 {[%clk 0:00:00]}  Qxf2+ {[%clk 0:00:00]} 32. Kxf2 {[%clk 0:00:00]}  Rc1 {[%clk 0:00:00]} 33. Nxc8 {[%clk 0:00:00]}  Rxc8 {[%clk 0:00:00]} 34. Re1 {[%clk 0:00:00]}  Kf7 {[%clk 0:00:00]} 35. Re2 {[%clk 0:00:00]}  Ke7 {[%clk 0:00:00]} 36. Rd2 {[%clk 0:00:00]}  Rc5 {[%clk 0:00:00]} 37. Re2 {[%clk 0:00:00]}  Rb5 {[%clk 0:00:00]} 38. Kf3 {[%clk 0:00:00]}  Rb4 {[%clk 0:00:00]} 39. Ke3 {[%clk 0:00:00]}  g5 {[%clk 0:00:00]} 40. Rd2 {[%clk 0:00:00]}  h5 {[%clk 0:00:00]} 41. Rd4 {[%clk 0:00:00]}  Rb5 {[%clk 0:00:00]} 42. Ke4 {[%clk 0:00:00]}  Ra5 {[%clk 0:00:00]} 43. Ra4 {[%clk 0:00:00]}  Rd5 {[%clk 0:00:00]} 44. Rd4 {[%clk 0:00:00]}  Ra5 {[%clk 0:00:00]} 45. Rd2 {[%clk 0:00:00]}  Rb5 {[%clk 0:00:00]} 46. Rb2 {[%clk 0:00:00]}  Rb4+ {[%clk 0:00:00]} 47. Kd3 {[%clk 0:00:00]}  Rb5 {[%clk 0:00:00]} 48. Kd4 {[%clk 0:00:00]}  Rb4+ {[%clk 0:00:00]} 49. Kd3 {[%clk 0:00:00]}  Rb5 {[%clk 0:00:00]} 50. Re2 {[%clk 0:00:00]}  h4 {[%clk 0:00:00]} 51. Kc4 {[%clk 0:00:00]}  Rd5 {[%clk 0:00:00]} 52. a4 {[%clk 0:00:00]}  d6 {[%clk 0:00:00]} 53. exd6+ {[%clk 0:00:00]}  Kxd6 {[%clk 0:00:00]} 54. b4 {[%clk 0:00:00]}  e5 {[%clk 0:00:00]} 55. a5 {[%clk 0:00:00]}  Rd4+ {[%clk 0:00:00]} 56. Kc3 {[%clk 0:00:00]}  Kc6 {[%clk 0:00:00]} 57. Rxe5 {[%clk 0:00:00]}  Rg4 {[%clk 0:00:00]} 58. Re2 {[%clk 0:00:00]}  Kb5 {[%clk 0:00:00]} 59. Kb3 {[%clk 0:00:00]}  Rxb4+ {[%clk 0:00:00]} 60. Kc3 {[%clk 0:00:00]}  Rg4 {[%clk 0:00:00]} 61. Ra2 {[%clk 0:00:00]}  Ka6 {[%clk 0:00:00]} 62. Kd3 {[%clk 0:00:00]}  Rb4 {[%clk 0:00:00]} 63. Ke3 {[%clk 0:00:00]}  Rc4 {[%clk 0:00:00]} 64. h3 {[%clk 0:00:00]}  Rb4 {[%clk 0:00:00]} 65. Kf3 {[%clk 0:00:00]}  Rc4 {[%clk 0:00:00]} 66. Ra3 {[%clk 0:00:00]}  Rb4 {[%clk 0:00:00]} 67. Ra2 {[%clk 0:00:00]}  Rc4 {[%clk 0:00:00]} 68. Re2 {[%clk 0:00:00]}  Rc5 {[%clk 0:00:00]} 69. Ra2 {[%clk 0:00:00]} 1-0


[Site "https://www.chess.com"]

[Event "Titled Tuesday Blitz May 2 Early 2023"]
[White "Garakov, Mikhael"]
[Black "Kubicka, Anna"]
[WhiteFideId "4169034"]
[BlackFideId "1152254"]
[WhiteElo "2347"]
[BlackElo "2144"]
[Result "1-0"]
[Round "07"]
[TimeControl "180+2"]
[Date "2023.05.03"]
[WhiteClock "0:00:00"]
[BlackClock "0:00:00"]

1. e4 {[%clk 0:00:01]}  c5 {[%clk 0:00:01]} 2. Nf3 {[%clk 0:00:01]}  d6 {[%clk 0:00:01]} 3. d4 {[%clk 0:00:01]}  cxd4 {[%clk 0:00:01]} 4. Nxd4 {[%clk 0:00:01]}  Nf6 {[%clk 0:00:01]} 5. Nc3 {[%clk 0:00:01]}  a6 {[%clk 0:00:01]} 6. f4 {[%clk 0:00:01]}  e5 {[%clk 0:00:01]} 7. Nf3 {[%clk 0:00:01]}  Nbd7 {[%clk 0:00:01]} 8. a4 {[%clk 0:00:01]}  Be7 {[%clk 0:00:01]} 9. Bc4 {[%clk 0:00:01]}  O-O {[%clk 0:00:01]} 10. O-O {[%clk 0:00:01]}  b6 {[%clk 0:00:01]} 11. Nd5 {[%clk 0:00:01]}  Bb7 {[%clk 0:00:01]} 12. Qe2 {[%clk 0:00:01]}  Rc8 {[%clk 0:00:01]} 13. Bxa6 {[%clk 0:00:01]}  Bxa6 {[%clk 0:00:01]} 14. Qxa6 {[%clk 0:00:01]}  Nxd5 {[%clk 0:00:01]} 15. exd5 {[%clk 0:00:01]}  Rxc2 {[%clk 0:00:01]} 16. b4 {[%clk 0:00:00]}  Bf6 {[%clk 0:00:01]} 17. Rb1 {[%clk 0:00:00]}  e4 {[%clk 0:00:01]} 18. Nd2 {[%clk 0:00:00]}  Bd4+ {[%clk 0:00:01]} 19. Kh1 {[%clk 0:00:00]}  Re8 {[%clk 0:00:00]} 20. Nb3 {[%clk 0:00:00]}  Bf6 {[%clk 0:00:00]} 21. Be3 {[%clk 0:00:00]}  Rc3 {[%clk 0:00:00]} 22. Rfe1 {[%clk 0:00:00]}  Rd3 {[%clk 0:00:00]} 23. a5 {[%clk 0:00:00]}  bxa5 {[%clk 0:00:00]} 24. Nxa5 {[%clk 0:00:00]}  Rxd5 {[%clk 0:00:00]} 25. Nc6 {[%clk 0:00:00]}  Qc8 {[%clk 0:00:00]} 26. b5 {[%clk 0:00:00]}  Nb8 {[%clk 0:00:00]} 27. Qa2 {[%clk 0:00:00]}  Rd3 {[%clk 0:00:00]} 28. Nxb8 {[%clk 0:00:00]}  Qxb8 {[%clk 0:00:00]} 29. b6 {[%clk 0:00:00]}  d5 {[%clk 0:00:00]} 30. b7 {[%clk 0:00:00]}  Rxe3 {[%clk 0:00:00]} 31. Rxe3 {[%clk 0:00:00]}  d4 {[%clk 0:00:00]} 32. Ra3 {[%clk 0:00:00]}  Qxf4 {[%clk 0:00:00]} 33. Ra8 {[%clk 0:00:00]}  Rb8 {[%clk 0:00:00]} 34. Qc4 {[%clk 0:00:00]}  h6 {[%clk 0:00:00]} 35. Rxb8+ {[%clk 0:00:00]}  Kh7 {[%clk 0:00:00]} 36. Rh8+ {[%clk 0:00:00]}  Kxh8 {[%clk 0:00:00]} 37. b8=Q+ {[%clk 0:00:00]}  Qxb8 {[%clk 0:00:00]} 38. Rxb8+ {[%clk 0:00:00]}  Kh7 {[%clk 0:00:00]} 39. Qxf7 {[%clk 0:00:00]} 1-0


[Site "https://www.chess.com"]

[Event "Titled Tuesday Blitz May 2 Early 2023"]
[White "Petrova, Irina"]
[Black "Erzhanov, Arman"]
[WhiteFideId "14124122"]
[BlackFideId "4138821"]
[WhiteElo "2084"]
[BlackElo "2138"]
[Result "1/2-1/2"]
[Round "07"]
[TimeControl "180+2"]
[Date "2023.05.03"]
[WhiteClock "0:00:00"]
[BlackClock "0:00:00"]

1. e4 {[%clk 0:00:01]}  c5 {[%clk 0:00:01]} 2. Nf3 {[%clk 0:00:01]}  Nc6 {[%clk 0:00:01]} 3. Bb5 {[%clk 0:00:01]}  d6 {[%clk 0:00:01]} 4. Bxc6+ {[%clk 0:00:01]}  bxc6 {[%clk 0:00:01]} 5. O-O {[%clk 0:00:01]}  e5 {[%clk 0:00:01]} 6. c3 {[%clk 0:00:01]}  f5 {[%clk 0:00:01]} 7. exf5 {[%clk 0:00:01]}  Bxf5 {[%clk 0:00:01]} 8. d4 {[%clk 0:00:01]}  cxd4 {[%clk 0:00:01]} 9. cxd4 {[%clk 0:00:01]}  e4 {[%clk 0:00:01]} 10. Ng5 {[%clk 0:00:01]}  Be7 {[%clk 0:00:01]} 11. Re1 {[%clk 0:00:01]}  Nf6 {[%clk 0:00:01]} 12. Nc3 {[%clk 0:00:01]}  d5 {[%clk 0:00:01]} 13. f3 {[%clk 0:00:01]}  O-O {[%clk 0:00:01]} 14. fxe4 {[%clk 0:00:01]}  dxe4 {[%clk 0:00:01]} 15. Ngxe4 {[%clk 0:00:01]}  Nxe4 {[%clk 0:00:01]} 16. Nxe4 {[%clk 0:00:01]}  Rb8 {[%clk 0:00:01]} 17. Ng3 {[%clk 0:00:01]}  Bg6 {[%clk 0:00:00]} 18. b3 {[%clk 0:00:01]}  Bf6 {[%clk 0:00:00]} 19. Bb2 {[%clk 0:00:01]}  c5 {[%clk 0:00:00]} 20. Ne4 {[%clk 0:00:01]}  Bxe4 {[%clk 0:00:00]} 21. Rxe4 {[%clk 0:00:01]}  Qd5 {[%clk 0:00:00]} 22. Qe2 {[%clk 0:00:01]}  cxd4 {[%clk 0:00:00]} 23. Rd1 {[%clk 0:00:01]}  Rbd8 {[%clk 0:00:00]} 24. Bxd4 {[%clk 0:00:01]}  Bxd4+ {[%clk 0:00:00]} 25. Rexd4 {[%clk 0:00:01]}  Qc5 {[%clk 0:00:00]} 26. Qe3 {[%clk 0:00:01]}  Rd6 {[%clk 0:00:00]} 27. R1d3 {[%clk 0:00:01]}  Rdf6 {[%clk 0:00:00]} 28. h3 {[%clk 0:00:00]}  Rf1+ {[%clk 0:00:00]} 29. Kh2 {[%clk 0:00:00]}  Qc7+ {[%clk 0:00:00]} 30. Qg3 {[%clk 0:00:00]}  Qc1 {[%clk 0:00:00]} 31. Qe3 {[%clk 0:00:00]}  Rh1+ {[%clk 0:00:00]} 32. Kg3 {[%clk 0:00:00]}  Qf1 {[%clk 0:00:00]} 33. Rd8 {[%clk 0:00:00]}  h6 {[%clk 0:00:00]} 34. Rxf8+ {[%clk 0:00:00]}  Qxf8 {[%clk 0:00:00]} 35. Qe6+ {[%clk 0:00:00]}  Kh7 {[%clk 0:00:00]} 36. Qe4+ {[%clk 0:00:00]}  Kh8 {[%clk 0:00:00]} 37. Qd4 {[%clk 0:00:00]}  Re1 {[%clk 0:00:00]} 38. Qd8 {[%clk 0:00:00]}  Re8 {[%clk 0:00:00]} 39. Qd6 {[%clk 0:00:00]}  Qf5 {[%clk 0:00:00]} 40. Kh2 {[%clk 0:00:00]}  Qf2 {[%clk 0:00:00]} 41. Rg3 {[%clk 0:00:00]}  Re2 {[%clk 0:00:00]} 42. Qd8+ {[%clk 0:00:00]}  Kh7 {[%clk 0:00:00]} 43. Qd3+ {[%clk 0:00:00]}  Kh8 {[%clk 0:00:00]} 44. Qd8+ {[%clk 0:00:00]}  Kh7 {[%clk 0:00:00]} 45. Qd3+ {[%clk 0:00:00]}  Kh8 {[%clk 0:00:00]} 46. Qd8+ {[%clk 0:00:00]} 1/2-1/2


[Site "https://www.chess.com"]

[Event "Titled Tuesday Blitz May 2 Early 2023"]
[White "Makhmudov, Shukhrat"]
[Black "Lopez, Henry"]
[WhiteFideId "14200775"]
[BlackFideId "5203830"]
[WhiteElo "2135"]
[BlackElo "2177"]
[Result "1-0"]
[Round "07"]
[TimeControl "180+2"]
[Date "2023.05.03"]
[WhiteClock "0:00:00"]
[BlackClock "0:00:00"]

1. e4 {[%clk 0:00:01]}  c5 {[%clk 0:00:01]} 2. Nf3 {[%clk 0:00:01]}  d6 {[%clk 0:00:01]} 3. d4 {[%clk 0:00:01]}  cxd4 {[%clk 0:00:01]} 4. Nxd4 {[%clk 0:00:01]}  Nf6 {[%clk 0:00:01]} 5. Nc3 {[%clk 0:00:01]}  a6 {[%clk 0:00:01]} 6. h3 {[%clk 0:00:01]}  e5 {[%clk 0:00:01]} 7. Nf3 {[%clk 0:00:01]}  h6 {[%clk 0:00:01]} 8. Bc4 {[%clk 0:00:01]}  Be6 {[%clk 0:00:01]} 9. Bxe6 {[%clk 0:00:01]}  fxe6 {[%clk 0:00:01]} 10. O-O {[%clk 0:00:01]}  Nc6 {[%clk 0:00:01]} 11. Re1 {[%clk 0:00:01]}  Be7 {[%clk 0:00:01]} 12. Nh4 {[%clk 0:00:01]}  Kf7 {[%clk 0:00:01]} 13. Nf3 {[%clk 0:00:01]}  Rf8 {[%clk 0:00:01]} 14. a3 {[%clk 0:00:01]}  Rc8 {[%clk 0:00:01]} 15. Be3 {[%clk 0:00:01]}  Kg8 {[%clk 0:00:01]} 16. Qd2 {[%clk 0:00:01]}  Kh7 {[%clk 0:00:01]} 17. Nh2 {[%clk 0:00:01]}  d5 {[%clk 0:00:01]} 18. exd5 {[%clk 0:00:01]}  exd5 {[%clk 0:00:01]} 19. f4 {[%clk 0:00:01]}  d4 {[%clk 0:00:01]} 20. fxe5 {[%clk 0:00:01]}  dxc3 {[%clk 0:00:01]} 21. Qxd8 {[%clk 0:00:01]}  Bxd8 {[%clk 0:00:01]} 22. exf6 {[%clk 0:00:01]}  Bxf6 {[%clk 0:00:01]} 23. b3 {[%clk 0:00:01]}  Rfe8 {[%clk 0:00:01]} 24. Rad1 {[%clk 0:00:00]}  Rcd8 {[%clk 0:00:00]} 25. Rxd8 {[%clk 0:00:00]}  Bxd8 {[%clk 0:00:00]} 26. Bf2 {[%clk 0:00:00]}  Rxe1+ {[%clk 0:00:00]} 27. Bxe1 {[%clk 0:00:00]}  Bf6 {[%clk 0:00:00]} 28. Nf3 {[%clk 0:00:00]}  Kg6 {[%clk 0:00:00]} 29. Kf2 {[%clk 0:00:00]}  Na5 {[%clk 0:00:00]} 30. Ke2 {[%clk 0:00:00]}  Kf5 {[%clk 0:00:00]} 31. Kd3 {[%clk 0:00:00]}  Kf4 {[%clk 0:00:00]} 32. Nd4 {[%clk 0:00:00]}  Nc6 {[%clk 0:00:00]} 33. g3+ {[%clk 0:00:00]}  Kg5 {[%clk 0:00:00]} 34. Nxc6 {[%clk 0:00:00]}  bxc6 {[%clk 0:00:00]} 35. Bxc3 {[%clk 0:00:00]}  h5 {[%clk 0:00:00]} 36. Bxf6+ {[%clk 0:00:00]}  Kxf6 {[%clk 0:00:00]} 37. Ke4 {[%clk 0:00:00]}  Kg5 {[%clk 0:00:00]} 38. b4 {[%clk 0:00:00]}  g6 {[%clk 0:00:00]} 39. c4 {[%clk 0:00:00]}  Kf6 {[%clk 0:00:00]} 40. a4 {[%clk 0:00:00]}  g5 {[%clk 0:00:00]} 41. b5 {[%clk 0:00:00]} 1-0


[Site "https://www.chess.com"]

[Event "Titled Tuesday Blitz May 2 Early 2023"]
[White "Biriukov, Ilja"]
[Black "Pujari, Rucha"]
[WhiteFideId "4113373"]
[BlackFideId "5024528"]
[WhiteElo "2426"]
[BlackElo "2129"]
[Result "0-1"]
[Round "07"]
[TimeControl "180+2"]
[Date "2023.05.03"]
[WhiteClock "0:00:01"]
[BlackClock "0:00:01"]

1. c4 {[%clk 0:00:01]}  e6 {[%clk 0:00:01]} 2. Nc3 {[%clk 0:00:01]}  d5 {[%clk 0:00:01]} 3. cxd5 {[%clk 0:00:01]}  exd5 {[%clk 0:00:01]} 4. d4 {[%clk 0:00:01]}  Nf6 {[%clk 0:00:01]} 5. Bg5 {[%clk 0:00:01]}  c6 {[%clk 0:00:01]} 6. e3 {[%clk 0:00:01]}  Bd6 {[%clk 0:00:01]} 7. Qc2 {[%clk 0:00:01]}  O-O {[%clk 0:00:01]} 8. Bd3 {[%clk 0:00:01]}  h6 {[%clk 0:00:01]} 9. Bh4 {[%clk 0:00:01]}  a5 {[%clk 0:00:01]} 10. Nge2 {[%clk 0:00:01]}  Na6 {[%clk 0:00:01]} 11. a3 {[%clk 0:00:01]}  Nc7 {[%clk 0:00:01]} 12. O-O {[%clk 0:00:01]}  Bxh2+ {[%clk 0:00:01]} 13. Kxh2 {[%clk 0:00:01]}  Ng4+ {[%clk 0:00:01]} 14. Kg3 {[%clk 0:00:01]}  g5 {[%clk 0:00:01]} 15. Rh1 {[%clk 0:00:01]}  gxh4+ {[%clk 0:00:01]} 16. Rxh4 {[%clk 0:00:01]}  Nxe3 {[%clk 0:00:01]} 0-1


[Site "https://www.chess.com"]